﻿Department,Entity,Date,ExpenseType,ExpenseArea,Supplier,Payment Number,InvoiceDistribution Amount,InvoiceDescription,SupplierPostCode,Expenditure Type
FOOD STANDARDS AGENCY - Westminster,FOOD STANDARDS AGENCY - Westminster,2021-07-01,EXP - PURCHASE OF GOODS/SERVICES - OTHER - PROGRAMME EXPENDITURE,Surveillance,COGNIZANT WORLDWIDE LTD,1011716299,22865,Data Science Extended Team - Redacted under S43 FOI Act,W2 6BD,Admin
FOOD STANDARDS AGENCY - Westminster,FOOD STANDARDS AGENCY - Westminster,2021-07-01,EXP - PURCHASE OF GOODS/SERVICES - OTHER - PROGRAMME EXPENDITURE,Surveillance,COGNIZANT WORLDWIDE LTD,1011716299,4573,UK VAT - UK VAT,W2 6BD,Admin
FOOD STANDARDS AGENCY - Westminster,FOOD STANDARDS AGENCY - Westminster,2021-07-02,EXP - PURCHASE OF GOODS/SERVICES - OTHER - PROGRAMME EXPENDITURE,SCIENTIFIC METHODS AND LABORATORY POLICY,I10 LTD,1011716306,23963,FSA728 WP2 - Sampling System Discovery,NG31 6JL,Admin
FOOD STANDARDS AGENCY - Westminster,FOOD STANDARDS AGENCY - Westminster,2021-07-05,EXP - PURCHASE OF GOODS/SERVICES - OTHER ICT COSTS - COMPUTER HARDWARE,IT SERVICE DELIVERY,COREAZURE LTD,1011716312,36185,IT24 Datacentre and Hosting,EC1N 8TS,Admin
FOOD STANDARDS AGENCY - Westminster,FOOD STANDARDS AGENCY - Westminster,2021-07-05,EXP - PURCHASE OF GOODS/SERVICES - OTHER ICT COSTS - COMPUTER HARDWARE,IT SERVICE DELIVERY,COREAZURE LTD,1011716312,7237,UK VAT - UK VAT,EC1N 8TS,Admin
FOOD STANDARDS AGENCY - Westminster,FOOD STANDARDS AGENCY - Westminster,2021-07-05,EXP - PURCHASE OF GOODS/SERVICES - TELECOMS - MOBILE PHONES,IT SERVICE DELIVERY,EE LTD,1011716314,22774.35,EE Monthly Charges - Redacted under S43 FOI Act,AL10 9BW,Admin
FOOD STANDARDS AGENCY - Westminster,FOOD STANDARDS AGENCY - Westminster,2021-07-05,EXP - PURCHASE OF GOODS/SERVICES - TELECOMS - MOBILE PHONES,IT SERVICE DELIVERY,EE LTD,1011716314,4552.48,UK VAT - UK VAT,AL10 9BW,Admin
FOOD STANDARDS AGENCY - Westminster,FOOD STANDARDS AGENCY - Westminster,2021-07-08,EXP - PURCHASE OF GOODS/SERVICES - OTHER - PROGRAMME EXPENDITURE,Surveillance,COGNIZANT WORLDWIDE LTD,1011716338,13005,AI Lead - Redacted under S43 FOI Act,W2 6BD,Admin
FOOD STANDARDS AGENCY - Westminster,FOOD STANDARDS AGENCY - Westminster,2021-07-08,EXP - PURCHASE OF GOODS/SERVICES - OTHER - PROGRAMME EXPENDITURE,Surveillance,COGNIZANT WORLDWIDE LTD,1011716338,2601,UK VAT - UK VAT,W2 6BD,Admin
FOOD STANDARDS AGENCY - Westminster,FOOD STANDARDS AGENCY - Westminster,2021-07-08,EXP - PURCHASE OF GOODS/SERVICES - OTHER - PROGRAMME EXPENDITURE,Surveillance,COGNIZANT WORLDWIDE LTD,1011716338,13230,Business Analyst - Redacted under S43 FOI Act,W2 6BD,Admin
FOOD STANDARDS AGENCY - Westminster,FOOD STANDARDS AGENCY - Westminster,2021-07-08,EXP - PURCHASE OF GOODS/SERVICES - OTHER - PROGRAMME EXPENDITURE,Surveillance,COGNIZANT WORLDWIDE LTD,1011716338,58568,Data Science Core Team - Redacted under S43 FOI Act,W2 6BD,Admin
FOOD STANDARDS AGENCY - Westminster,FOOD STANDARDS AGENCY - Westminster,2021-07-08,EXP - PURCHASE OF GOODS/SERVICES - OTHER - PROGRAMME EXPENDITURE,Surveillance,COGNIZANT WORLDWIDE LTD,1011716338,2646,UK VAT - UK VAT,W2 6BD,Admin
FOOD STANDARDS AGENCY - Westminster,FOOD STANDARDS AGENCY - Westminster,2021-07-08,EXP - PURCHASE OF GOODS/SERVICES - OTHER - PROGRAMME EXPENDITURE,Surveillance,COGNIZANT WORLDWIDE LTD,1011716338,11713.6,UK VAT - UK VAT,W2 6BD,Admin
FOOD STANDARDS AGENCY - Westminster,FOOD STANDARDS AGENCY - Westminster,2021-07-09,EXP - PURCHASE OF GOODS/SERVICES - OTHER - PROGRAMME EXPENDITURE,Surveillance,COGNIZANT WORLDWIDE LTD,1011716346,16830,AI Lead - Redacted under S43 FOI Act,W2 6BD,Admin
FOOD STANDARDS AGENCY - Westminster,FOOD STANDARDS AGENCY - Westminster,2021-07-09,EXP - PURCHASE OF GOODS/SERVICES - OTHER - PROGRAMME EXPENDITURE,Surveillance,COGNIZANT WORLDWIDE LTD,1011716346,3366,UK VAT - UK VAT,W2 6BD,Admin
FOOD STANDARDS AGENCY - Westminster,FOOD STANDARDS AGENCY - Westminster,2021-07-09,EXP - PURCHASE OF GOODS/SERVICES - OTHER - PROGRAMME EXPENDITURE,Surveillance,COGNIZANT WORLDWIDE LTD,1011716346,490,Data Science Extended Team - Redacted under S43 FOI Act,W2 6BD,Admin
FOOD STANDARDS AGENCY - Westminster,FOOD STANDARDS AGENCY - Westminster,2021-07-09,EXP - PURCHASE OF GOODS/SERVICES - OTHER - PROGRAMME EXPENDITURE,Surveillance,COGNIZANT WORLDWIDE LTD,1011716346,98,UK VAT - UK VAT,W2 6BD,Admin
FOOD STANDARDS AGENCY - Westminster,FOOD STANDARDS AGENCY - Westminster,2021-07-09,EXP - PURCHASE OF GOODS/SERVICES - OTHER - PROGRAMME EXPENDITURE,Surveillance,COGNIZANT WORLDWIDE LTD,1011716346,735,Business Analyst - Redacted under S43 FOI Act,W2 6BD,Admin
FOOD STANDARDS AGENCY - Westminster,FOOD STANDARDS AGENCY - Westminster,2021-07-09,EXP - PURCHASE OF GOODS/SERVICES - OTHER - PROGRAMME EXPENDITURE,Surveillance,COGNIZANT WORLDWIDE LTD,1011716346,12495,Business Analyst - Redacted under S43 FOI Act,W2 6BD,Admin
FOOD STANDARDS AGENCY - Westminster,FOOD STANDARDS AGENCY - Westminster,2021-07-09,EXP - PURCHASE OF GOODS/SERVICES - OTHER - PROGRAMME EXPENDITURE,Surveillance,COGNIZANT WORLDWIDE LTD,1011716346,67810,Data Science Core Team - Redacted under S43 FOI Act,W2 6BD,Admin
FOOD STANDARDS AGENCY - Westminster,FOOD STANDARDS AGENCY - Westminster,2021-07-09,EXP - PURCHASE OF GOODS/SERVICES - OTHER - PROGRAMME EXPENDITURE,Surveillance,COGNIZANT WORLDWIDE LTD,1011716346,147,UK VAT - UK VAT,W2 6BD,Admin
FOOD STANDARDS AGENCY - Westminster,FOOD STANDARDS AGENCY - Westminster,2021-07-09,EXP - PURCHASE OF GOODS/SERVICES - OTHER - PROGRAMME EXPENDITURE,Surveillance,COGNIZANT WORLDWIDE LTD,1011716346,2499,UK VAT - UK VAT,W2 6BD,Admin
FOOD STANDARDS AGENCY - Westminster,FOOD STANDARDS AGENCY - Westminster,2021-07-09,EXP - PURCHASE OF GOODS/SERVICES - OTHER - PROGRAMME EXPENDITURE,Surveillance,COGNIZANT WORLDWIDE LTD,1011716346,13562,UK VAT - UK VAT,W2 6BD,Admin
FOOD STANDARDS AGENCY - Westminster,FOOD STANDARDS AGENCY - Westminster,2021-07-09,EXP - AMORTISATION - INTANGIBLE ASSETS,Surveillance,COGNIZANT WORLDWIDE LTD,1011716346,74070,FSA715 WP15 - FSA Surveillance Programme  FHRS AI Enhancement (BC840),W2 6BD,Capital
FOOD STANDARDS AGENCY - Westminster,FOOD STANDARDS AGENCY - Westminster,2021-07-09,EXP - AMORTISATION - INTANGIBLE ASSETS,Surveillance,COGNIZANT WORLDWIDE LTD,1011716346,14814,UK VAT - UK VAT,W2 6BD,Capital
FOOD STANDARDS AGENCY - Westminster,FOOD STANDARDS AGENCY - Westminster,2021-07-12,EXP - PURCHASE OF GOODS/SERVICES - OTHER ICT COSTS - COMPUTER SOFTWARE,IT SERVICE DELIVERY,PHOENIX SOFTWARE LIMITED,1011716359,42239.05,FS430711 Server & Cloud Enrollment Redacted under S43 FOI Act (BC711),YO42 1NS,Admin
FOOD STANDARDS AGENCY - Westminster,FOOD STANDARDS AGENCY - Westminster,2021-07-12,EXP - PURCHASE OF GOODS/SERVICES - OTHER ICT COSTS - COMPUTER SOFTWARE,IT SERVICE DELIVERY,PHOENIX SOFTWARE LIMITED,1011716359,8447.81,UK VAT - UK VAT,YO42 1NS,Admin
FOOD STANDARDS AGENCY - Westminster,FOOD STANDARDS AGENCY - Westminster,2021-07-13,EXP - PURCHASE OF GOODS/SERVICES - OTHER ICT COSTS - COMPUTER SOFTWARE,IT SERVICE DELIVERY,PHOENIX SOFTWARE LIMITED,1011716378,422426.83,FS430711 Microsoft Enterprise Redacted under S43 FOI Act (BC711),YO42 1NS,Admin
FOOD STANDARDS AGENCY - Westminster,FOOD STANDARDS AGENCY - Westminster,2021-07-13,EXP - PURCHASE OF GOODS/SERVICES - OTHER ICT COSTS - COMPUTER SOFTWARE,IT SERVICE DELIVERY,PHOENIX SOFTWARE LIMITED,1011716378,84485.36,UK VAT - UK VAT,YO42 1NS,Admin
FOOD STANDARDS AGENCY - Westminster,FOOD STANDARDS AGENCY - Westminster,2021-07-13,EXP - PURCHASE OF GOODS/SERVICES - OTHER - PROGRAMME EXPENDITURE,Surveillance,COGNIZANT WORLDWIDE LTD,1011716375,27610,Data Science Extended Team - Jun 2021,W2 6BD,Admin
FOOD STANDARDS AGENCY - Westminster,FOOD STANDARDS AGENCY - Westminster,2021-07-13,EXP - PURCHASE OF GOODS/SERVICES - OTHER - PROGRAMME EXPENDITURE,Surveillance,COGNIZANT WORLDWIDE LTD,1011716375,5522,UK VAT - UK VAT,W2 6BD,Admin
FOOD STANDARDS AGENCY - Westminster,FOOD STANDARDS AGENCY - Westminster,2021-07-14,EXP - PURCHASE OF GOODS/SERVICES - OTHER - CARRIAGE OF SAMPLES,OPERATIONAL DELIVERY,TOPSPEED COURIERS LIMITED,1011716390,13725,Topspeed Couriers - Redacted under S43 FOI Act - Trichinella Samples,WA16 8XN,Admin
FOOD STANDARDS AGENCY - Westminster,FOOD STANDARDS AGENCY - Westminster,2021-07-14,EXP - PURCHASE OF GOODS/SERVICES - OTHER - CARRIAGE OF SAMPLES,OPERATIONAL DELIVERY,TOPSPEED COURIERS LIMITED,1011716390,16400,Topspeed Couriers - Collection of RIM samples - Redacted under S43 FOI Act,WA16 8XN,Admin
FOOD STANDARDS AGENCY - Westminster,FOOD STANDARDS AGENCY - Westminster,2021-07-15,EXP - PURCHASE OF GOODS/SERVICES - OTHER - PROGRAMME EXPENDITURE,DIGITAL,I10 LTD,1011716394,525,FSA728 WP29 Power Apps Support (BC759),NG31 6JL,Admin
FOOD STANDARDS AGENCY - Westminster,FOOD STANDARDS AGENCY - Westminster,2021-07-15,EXP - PURCHASE OF GOODS/SERVICES - OTHER - PROGRAMME EXPENDITURE,DIGITAL,I10 LTD,1011716394,105,UK VAT - UK VAT,NG31 6JL,Admin
FOOD STANDARDS AGENCY - Westminster,FOOD STANDARDS AGENCY - Westminster,2021-07-15,EXP - PURCHASE OF GOODS/SERVICES - OTHER - PROGRAMME EXPENDITURE,Surveillance,I10 LTD,1011716394,25602.07,FSA728 WP20 Reducing Friction in International Trade (BC762),NG31 6JL,Admin
FOOD STANDARDS AGENCY - Westminster,FOOD STANDARDS AGENCY - Westminster,2021-07-15,EXP - PURCHASE OF GOODS/SERVICES - OTHER - PROGRAMME EXPENDITURE,Surveillance,I10 LTD,1011716394,5120.41,UK VAT - UK VAT,NG31 6JL,Admin
FOOD STANDARDS AGENCY - Westminster,FOOD STANDARDS AGENCY - Westminster,2021-07-16,EXP - PURCHASE OF GOODS/SERVICES - OTHER ICT COSTS - COMPUTER HARDWARE,IT SERVICE DELIVERY,COREAZURE LTD,1011716421,23197.42,IT24 Var 2 - Azure CSP  Consumption -Redacted under S43 FOI Act ,EC1N 8TS,Admin
FOOD STANDARDS AGENCY - Westminster,FOOD STANDARDS AGENCY - Westminster,2021-07-16,EXP - PURCHASE OF GOODS/SERVICES - OTHER ICT COSTS - COMPUTER HARDWARE,IT SERVICE DELIVERY,COREAZURE LTD,1011716421,92156.01,IT24 Var 2 - Azure CSP  Consumption - Redacted under S43 FOI Act,EC1N 8TS,Admin
FOOD STANDARDS AGENCY - Westminster,FOOD STANDARDS AGENCY - Westminster,2021-07-16,EXP - PURCHASE OF GOODS/SERVICES - SHARED SERV OUTSRCG- CIVIL SERV PENSION ADMIN,FINANCE,LONDON PENSIONS FUND AUTHORITY,1011716414,125000,SOP1-804076-173305-174097-LPFA ER'S,EC3N 4LP,Admin
FOOD STANDARDS AGENCY - Westminster,FOOD STANDARDS AGENCY - Westminster,2021-07-16,EXP - PURCHASE OF GOODS/SERVICES - OTHER - PROGRAMME EXPENDITURE,DIGITAL,I10 LTD,1011716420,25725,FSA728 WP24 Application Modernisation (BC759),NG31 6JL,Admin
FOOD STANDARDS AGENCY - Westminster,FOOD STANDARDS AGENCY - Westminster,2021-07-16,EXP - PURCHASE OF GOODS/SERVICES - OTHER - PROGRAMME EXPENDITURE,DIGITAL,I10 LTD,1011716420,5145,UK VAT - UK VAT,NG31 6JL,Admin
FOOD STANDARDS AGENCY - Westminster,FOOD STANDARDS AGENCY - Westminster,2021-07-21,EXP - PURCHASE OF GOODS/SERVICES - OTHER,PROCUREMENT,CAMBRIDGE UNIVERSITY TECHINICAL SERVICES LTD,1011716434,50000,FS450653 Rapid evidence review of emerging trends in food purchasing and sellingusing online platforms andRapid evidence review of emerging technologies that will impact on the UK foodsystem,CB3 0GT,Admin
FOOD STANDARDS AGENCY - Westminster,FOOD STANDARDS AGENCY - Westminster,2021-07-23,Redacted under S43 FOI Act,OPERATIONAL DELIVERY,Redacted under S43 FOI Act,1011716457,27200,Redacted under S43 FOI Act,LS15 8ZB,Admin
FOOD STANDARDS AGENCY - Westminster,FOOD STANDARDS AGENCY - Westminster,2021-07-23,EXP - PURCHASE OF GOODS/SERVICES - ACCOMM & BLDNG MGMT - SHARED SITE RECHARGE,SECURITY & ESTATES,GOVERNMENT PROPERTY AGENCY,1011716453,323663.55,SOP1-806007-901256-174097-CLIVE HOUSE RENT,EH3 8EG,Admin
FOOD STANDARDS AGENCY - Westminster,FOOD STANDARDS AGENCY - Westminster,2021-07-23,EXP - PURCHASE OF GOODS/SERVICES - ACCOMM & BLDNG MGMT - SHARED SITE RECHARGE,SECURITY & ESTATES,GOVERNMENT PROPERTY AGENCY,1011716453,136566.02,SOP1-806009-901256-174097-CLIVE HOUSE RATES,EH3 8EG,Admin
FOOD STANDARDS AGENCY - Westminster,FOOD STANDARDS AGENCY - Westminster,2021-07-26,EXP - PURCHASE OF GOODS/SERVICES - OTHER - PROGRAMME EXPENDITURE,"SCIENCE STRATEGY, CAPABILITY AND RESEARCH",IMPERIAL COLLEGE,1011716467,28612.31,"Using NHS data to monitor trends in the occurrence of severe, food-induced allergic reactions",SW7 2AZ,Admin
FOOD STANDARDS AGENCY - Westminster,FOOD STANDARDS AGENCY - Westminster,2021-07-28,EXP - PURCHASE OF GOODS/SERVICES - OTHER - PROGRAMME EXPENDITURE,"NOVEL FOODS, GM, RADIOLOGICAL AND FEED ADDITIVES",C E F A S,2011700079,78695.79,Redacted under S40 FOI act,NR33 0HT,Admin
FOOD STANDARDS AGENCY - Westminster,FOOD STANDARDS AGENCY - Westminster,2021-07-29,EXP - PURCHASE OF GOODS/SERVICES - OTHER - PROGRAMME EXPENDITURE,REGULATORY DELIVERY,C E F A S,2011700080,26510.13,Phytoplankton analysis for shellfish official controls Redacted under S43 FOI Act,NR33 0HT,Admin
FOOD STANDARDS AGENCY - Westminster,FOOD STANDARDS AGENCY - Westminster,2021-07-29,EXP - PURCHASE OF GOODS/SERVICES - OTHER - PROGRAMME EXPENDITURE,REGULATORY DELIVERY,C E F A S,2011700080,22539,Classification management - Shellfish official controls,NR33 0HT,Admin
FOOD STANDARDS AGENCY - Westminster,FOOD STANDARDS AGENCY - Westminster,2021-07-29,EXP - PURCHASE OF GOODS/SERVICES - OTHER - PROGRAMME EXPENDITURE,REGULATORY DELIVERY,C E F A S,2011700080,36961.16,Biotoxin official controls - Shellfish,NR33 0HT,Admin
FOOD STANDARDS AGENCY - Westminster,FOOD STANDARDS AGENCY - Westminster,2021-07-29,EXP - PURCHASE OF GOODS/SERV - SUPPORT - IT SUPPORT SERVICES,IT SERVICE DELIVERY,LITTLE FISH UK LTD,1011716487,3122,IT25 Major Incident Management Redacted under S43 FOI Act,NG1 1LS,Admin
FOOD STANDARDS AGENCY - Westminster,FOOD STANDARDS AGENCY - Westminster,2021-07-29,EXP - PURCHASE OF GOODS/SERV - SUPPORT - IT SUPPORT SERVICES,IT SERVICE DELIVERY,LITTLE FISH UK LTD,1011716487,20843.5,IT19 Build Manage & Maintain (EUC) Redacted under S43 FOI Act,NG1 1LS,Admin
FOOD STANDARDS AGENCY - Westminster,FOOD STANDARDS AGENCY - Westminster,2021-07-29,EXP - PURCHASE OF GOODS/SERV - SUPPORT - IT SUPPORT SERVICES,IT SERVICE DELIVERY,LITTLE FISH UK LTD,1011716487,28264,IT25 Helpdesk Servicedesk Redacted under S43 FOI Act,NG1 1LS,Admin
FOOD STANDARDS AGENCY - Westminster,FOOD STANDARDS AGENCY - Westminster,2021-07-29,EXP - PURCHASE OF GOODS/SERVICES - TELECOMS - TELEPHONE,IT SERVICE DELIVERY,LITTLE FISH UK LTD,1011716487,14209,IT1 Networks Design and Delivery (LAN) Redacted under S43 FOI Act,NG1 1LS,Admin
FOOD STANDARDS AGENCY - Westminster,FOOD STANDARDS AGENCY - Westminster,2021-07-30,EXP - PURCHASE OF GOODS/SERVICES - OTHER - PROGRAMME EXPENDITURE,"NOVEL FOODS, GM, RADIOLOGICAL AND FEED ADDITIVES",C E F A S,2011700081,78695.79,FS101211 - Sampling and analysis contact to be undertaken by CEFAS,NR33 0HT,Admin
FOOD STANDARDS AGENCY - Westminster,FOOD STANDARDS AGENCY - Westminster,2021-07-30,EXP - PURCHASE OF GOODS/SERVICES - OTHER - PROGRAMME EXPENDITURE,"NOVEL FOODS, GM, RADIOLOGICAL AND FEED ADDITIVES",C E F A S,2011700081,78695.79,FS101211 - Sampling and analysis contact to be undertaken by CEFAS,NR33 0HT,Admin
